bitfinex/quotes_BTCUSD_20260215
["timestamp","ask_amount","ask_price","bid_price","bid_amount"]
[1771152357817,0.07094479,70479.0,70473.0,0.07094914]
[1771152358025,0.07094449,70478.0,70473.0,0.07094914]
[1771152359837,0.07134449,70478.0,70473.0,0.07094914]
[1771152360461,0.07094527,70477.0,70473.0,0.07094914]
[1771152360840,0.07094527,70477.0,70472.0,0.07094837]
[1771152361447,0.0004,70478.0,70470.0,4e-05]
[1771152361651,0.07094952,70473.0,70470.0,4e-05]
[1771152361815,0.07094865,70474.0,70470.0,0.07099216]
[1771152362022,0.07094812,70475.0,70470.0,0.07099216]
[1771152362430,0.07094812,70475.0,70470.0,0.07095216]
[1771152362638,0.07094812,70475.0,70471.0,0.07095115]
[1771152363275,0.07094812,70475.0,70470.0,0.07095216]
[1771152363775,0.07094823,70474.0,70469.0,0.07095161]
[1771152363980,0.07094812,70475.0,70470.0,0.07095213]
[1771152364895,0.07094815,70474.0,70469.0,0.07095161]
[1771152365975,0.07094927,70473.0,70468.0,0.07095247]
[1771152366107,0.07094815,70474.0,70469.0,0.07095293]
[1771152366592,0.07094655,70476.0,70471.0,0.07095058]
[1771152367642,0.07094655,70476.0,70471.0,0.07115058]
[1771152368278,0.07094655,70476.0,70471.0,0.07111058]
[1771152373090,0.07094655,70476.0,70472.0,0.07095011]
[1771152373873,0.07094687,70477.0,70472.0,0.07095011]
[1771152374073,0.07134574,70478.0,70473.0,0.07094882]
[1771152374613,0.07094519,70477.0,70473.0,0.07094882]
[1771152375127,0.07094519,70477.0,70472.0,0.07095011]
[1771152376200,0.07127359,70477.0,70472.0,0.07095011]
[1771152378182,0.0003284,70477.0,70473.0,0.07094885]
[1771152378603,0.07127359,70477.0,70473.0,0.07094885]
[1771152378832,0.07127359,70477.0,70472.0,0.07095011]
[1771152380492,0.07127359,70477.0,70473.0,0.07094911]
[1771152380922,0.0003284,70477.0,70473.0,0.07094911]
[1771152381485,0.07127373,70477.0,70472.0,0.07095011]
[1771152381691,0.07094646,70476.0,70471.0,0.07114949]
[1771152382092,0.07127373,70477.0,70472.0,0.07094961]
[1771152382698,0.07127373,70477.0,70473.0,0.07094906]
[1771152384048,0.0003284,70477.0,70473.0,0.07094906]
[1771152384654,0.07127379,70477.0,70472.0,0.07094961]
[1771152385331,0.07127379,70477.0,70473.0,0.07094905]
[1771152385514,0.0007284,70477.0,70473.0,0.07094905]
[1771152386658,0.0007284,70477.0,70472.0,0.07094961]
[1771152386659,0.0716739,70477.0,70472.0,0.07094961]
[1771152386858,0.0007284,70477.0,70473.0,0.07094888]
[1771152388027,0.0007284,70477.0,70474.0,0.07094769]
[1771152388948,0.0007284,70477.0,70476.0,0.07094613]
[1771152389486,0.02277263,70493.0,70473.0,0.18285176]
[1771152389806,0.07092954,70493.0,70487.0,0.07093458]
[1771152390009,0.07092877,70494.0,70488.0,0.07093368]
[1771152390211,0.02236308,70492.0,70491.0,0.07093104]
[1771152391570,0.02236308,70492.0,70489.0,0.07093238]
[1771152391697,0.02236308,70492.0,70490.0,0.07093126]
[1771152391906,0.02279467,70492.0,70490.0,0.07093126]
[1771152392127,0.02279467,70492.0,70489.0,0.07093238]
[1771152392329,0.02279467,70492.0,70488.0,0.07093401]
[1771152392731,0.02279467,70492.0,70480.0,0.52281176]
[1771152392732,0.07093508,70487.0,70478.0,0.33992]
[1771152392907,0.07093362,70489.0,70482.0,0.07093943]
[1771152393309,0.09370625,70489.0,70482.0,0.07093943]
[1771152393583,0.07093537,70487.0,70482.0,0.07093943]
[1771152394224,0.07093622,70486.0,70478.0,0.33992]
[1771152394436,0.0709367,70487.0,70480.0,0.07094163]
[1771152394869,0.0709367,70487.0,70481.0,0.07094055]
[1771152395312,0.07077226,70487.0,70481.0,0.07094055]
[1771152395758,0.09354489,70487.0,70482.0,0.07094007]
[1771152396181,0.09370809,70487.0,70480.0,0.070942]
[1771152396396,0.07093677,70486.0,70480.0,0.070942]
[1771152396606,0.07093677,70486.0,70481.0,0.07094096]
[1771152396821,0.09354499,70486.0,70481.0,0.07094096]
[1771152397287,0.0004,70490.0,70477.0,0.07094468]
[1771152397288,0.07094061,70482.0,70477.0,0.07094468]
[1771152397504,0.0709382,70484.0,70474.0,0.07094815]
[1771152397717,0.0709382,70484.0,70478.0,0.07094363]
[1771152397919,0.07093911,70483.0,70478.0,0.07094363]
[1771152398127,0.0709382,70484.0,70478.0,0.07094363]
[1771152398330,4e-05,70480.0,70478.0,0.07094363]
[1771152398690,4e-05,70480.0,70479.0,0.07094311]
[1771152399039,5.5e-05,70487.0,70484.0,0.07093796]
[1771152399420,5.5e-05,70487.0,70480.0,0.2837656]
[1771152399595,5.5e-05,70487.0,70479.0,0.02399546]
[1771152399596,5.5e-05,70487.0,70485.0,0.07093629]
[1771152399808,5.5e-05,70488.0,70486.0,0.07093607]
[1771152400213,5.5e-05,70488.0,70485.0,0.07093629]
[1771152400377,5.5e-05,70488.0,70484.0,0.07093639]
[1771152400589,0.07093553,70487.0,70482.0,0.07093975]
[1771152401189,0.07098912,70488.0,70483.0,0.07093894]
[1771152403234,0.07098912,70488.0,70479.0,0.02399546]
[1771152403235,5.5e-05,70488.0,70481.0,0.283761]
[1771152403432,5.5e-05,70488.0,70485.0,0.0709361]
[1771152403678,0.0004,70490.0,70486.0,0.07093577]
[1771152404255,0.0004,70490.0,70487.0,0.07093477]
[1771152404464,0.0004,70490.0,70488.0,0.07093346]
[1771152404714,0.0004,70490.0,70487.0,0.07093477]
[1771152405061,0.28416338,70495.0,70485.0,0.28374625]
[1771152405062,0.0713837,70495.0,70489.0,0.07093305]
[1771152405261,0.07092821,70494.0,70489.0,0.07084965]
[1771152405666,0.07145715,70495.0,70490.0,0.07093171]
[1771152405869,0.07140215,70495.0,70490.0,0.07093171]
[1771152406313,5.5e-05,70497.0,70494.0,0.07092802]
[1771152406848,0.0005284,70498.0,70494.0,0.07092802]
[1771152407164,0.0005284,70498.0,70491.0,0.30840059]
[1771152407165,0.0005284,70498.0,70497.0,0.070925]
[1771152408044,0.07097453,70503.0,70496.0,0.07092576]
[1771152408045,0.07091999,70502.0,70496.0,0.07092576]
[1771152408450,0.07092137,70501.0,70495.0,0.07092545]
[1771152408682,0.07092238,70500.0,70495.0,0.07092545]
[1771152408890,0.07092133,70501.0,70496.0,0.07092544]
[1771152409211,0.07092018,70502.0,70497.0,0.07092479]
[1771152409744,0.07092118,70501.0,70496.0,0.07092544]
[1771152409953,0.07092118,70501.0,70496.0,0.09560256]
[1771152410194,0.07092118,70501.0,70496.0,0.07092595]
[1771152410520,0.07092018,70502.0,70496.0,0.07092595]
[1771152411254,0.07092099,70501.0,70496.0,0.07092595]
[1771152411457,0.07092018,70502.0,70496.0,0.07092595]
[1771152411458,0.07092018,70502.0,70497.0,0.07092495]
[1771152412111,0.0004,70500.0,70497.0,0.07092495]
[1771152412555,0.07104581,70505.0,70499.0,0.07092254]
[1771152412760,0.07091798,70504.0,70498.0,0.07092381]
[1771152412973,0.07091969,70503.0,70498.0,0.09560042]
[1771152413179,0.07091969,70503.0,70500.0,4e-05]
[1771152413383,0.07091798,70504.0,70500.0,4e-05]
[1771152413535,0.07091901,70503.0,70500.0,4e-05]
[1771152414355,0.07092007,70502.0,70500.0,4e-05]
[1771152414583,0.07092097,70501.0,70500.0,4e-05]
[1771152415061,0.07092007,70502.0,70500.0,4e-05]
[1771152415417,0.02678635,70502.0,70500.0,4e-05]
[1771152415869,0.0001284,70505.0,70500.0,0.02471661]
[1771152416045,0.07091988,70504.0,70500.0,0.02471661]
[1771152416325,0.070919,70503.0,70500.0,0.02471661]
[1771152416551,0.07091999,70502.0,70500.0,4e-05]
[1771152416766,0.07092097,70501.0,70500.0,4e-05]
[1771152416971,0.0709243,70498.0,70493.0,0.07092864]
[1771152417174,0.0709243,70498.0,70492.0,0.07092935]
[1771152417812,0.0709243,70498.0,70493.0,0.07092898]
[1771152418027,0.07092473,70499.0,70493.0,0.07092898]
[1771152418229,0.07092473,70499.0,70494.0,0.07092797]
[1771152418434,0.07092412,70498.0,70493.0,0.07092898]
[1771152419223,0.0001284,70505.0,70494.0,0.07092796]
[1771152419436,0.07092241,70500.0,70494.0,0.07092796]
[1771152419859,0.07092241,70500.0,70493.0,0.07092898]
[1771152420062,0.07092241,70500.0,70494.0,0.07092799]
[1771152420269,0.07092122,70501.0,70494.0,0.07092773]
[1771152420675,0.07092234,70500.0,70494.0,0.07092773]
[1771152421672,0.02456883,70502.0,70490.0,4e-05]
[1771152421843,0.07092099,70501.0,70491.0,0.07093104]
[1771152422085,0.07092099,70501.0,70495.0,0.07092642]
[1771152422290,0.07092099,70501.0,70494.0,0.07092642]
[1771152422708,0.02456883,70502.0,70496.0,0.07092572]
[1771152422918,0.0709203,70502.0,70495.0,0.07092515]
[1771152423124,0.07092145,70501.0,70495.0,0.07092515]
[1771152426235,0.07092145,70501.0,70494.0,0.07092634]
[1771152426236,0.07091997,70502.0,70492.0,0.0709281]
[1771152426555,0.07092384,70499.0,70493.0,0.0709284]
[1771152427001,0.07092415,70498.0,70493.0,0.0709284]
[1771152427455,0.07092502,70497.0,70491.0,0.09560736]
[1771152427721,0.07092415,70498.0,70491.0,0.02467661]
[1771152427722,0.07092418,70498.0,70491.0,0.02467661]
[1771152427954,0.0001284,70505.0,70490.0,4e-05]
[1771152427955,1e-08,70508.0,70492.0,0.30839272]
[1771152428175,0.07091445,70508.0,70501.0,0.07092066]
[1771152429105,1e-08,70508.0,70497.0,0.02467661]
[1771152429333,1e-08,70508.0,70498.0,0.07092347]
[1771152429334,0.27579648,70505.0,70498.0,0.07092347]
[1771152430007,0.02456883,70505.0,70499.0,0.07092289]
[1771152430241,0.07106531,70506.0,70499.0,0.07092289]
[1771152430476,0.0001484,70506.0,70495.0,0.02467661]
[1771152430705,0.0001484,70506.0,70502.0,0.07091937]
[1771152430947,0.07091747,70505.0,70498.0,0.07092347]
[1771152431169,0.07091747,70505.0,70499.0,0.07092292]
[1771152431395,0.07106483,70506.0,70499.0,0.07092292]
[1771152432090,0.07106483,70506.0,70500.0,0.07092196]
[1771152432296,0.0001484,70506.0,70500.0,0.07092196]
[1771152432954,0.07106436,70506.0,70500.0,0.07092196]
[1771152433688,0.0001484,70506.0,70501.0,0.0709204]
[1771152434881,0.0001484,70506.0,70502.0,0.07091984]
[1771152435080,0.07091762,70505.0,70499.0,0.07092264]
[1771152435594,0.07091803,70504.0,70499.0,0.07092264]
[1771152435804,0.07091762,70505.0,70499.0,0.07092264]
[1771152436908,0.07091818,70504.0,70498.0,0.07092379]
[1771152437109,0.07091818,70504.0,70499.0,0.07092267]
[1771152437310,0.07091762,70505.0,70499.0,0.07092267]
[1771152437715,0.07106603,70506.0,70497.0,0.070925]
[1771152437716,0.0001484,70506.0,70497.0,0.070925]
[1771152437922,0.0001484,70506.0,70496.0,0.02380925]
[1771152438125,0.07106481,70506.0,70500.0,0.07092184]
[1771152438731,0.0001484,70506.0,70501.0,0.0709205]
[1771152440964,0.0710646,70506.0,70501.0,0.0709205]
[1771152441171,0.17303416,70505.0,70491.0,0.00025]
[1771152441374,0.07092679,70496.0,70491.0,0.00025]
[1771152441547,0.0709246,70498.0,70492.0,0.07092942]
[1771152441757,0.09579187,70497.0,70491.0,0.07117926]
[1771152441992,0.02486685,70497.0,70491.0,0.07117926]
[1771152442170,0.07092709,70495.0,70491.0,0.00025]
[1771152443221,0.07092725,70495.0,70491.0,0.00025]
[1771152443434,0.02486685,70497.0,70493.0,0.07092889]
[1771152443651,0.07092449,70498.0,70493.0,0.07092889]
[1771152445620,0.07092329,70499.0,70494.0,0.07092739]
[1771152446682,0.02486685,70501.0,70491.0,0.00025]
[1771152446924,0.0709298,70493.0,70488.0,0.07093371]
[1771152448692,0.28373196,70500.0,70493.0,0.07092859]
[1771152448693,0.07092475,70498.0,70493.0,0.07092859]
[1771152448909,0.07092475,70498.0,70493.0,0.07136018]
[1771152449129,4e-05,70500.0,70494.0,0.07092802]
[1771152449341,0.07092356,70499.0,70494.0,0.07092802]
[1771152450419,0.07092476,70498.0,70493.0,0.00043159]
[1771152450603,4e-05,70500.0,70493.0,0.00043159]
[1771152450604,0.07092802,70494.0,70493.0,0.00043159]
[1771152450812,0.07092778,70495.0,70489.0,0.07093263]
[1771152451033,0.07135906,70495.0,70490.0,0.0709319]
[1771152453299,0.00043128,70495.0,70491.0,0.07093067]
[1771152453598,0.00043128,70495.0,70491.0,0.07113067]
[1771152453789,0.00043128,70495.0,70491.0,0.0002]
[1771152453790,0.07135857,70495.0,70491.0,0.0002]
[1771152454436,0.00043128,70495.0,70492.0,0.07092962]
[1771152454983,0.00043128,70495.0,70491.0,0.07112933]
[1771152456019,0.07135839,70495.0,70491.0,0.0002]
[1771152456245,0.00043128,70495.0,70491.0,0.07113086]
[1771152456632,0.00043128,70495.0,70492.0,0.07092985]
[1771152456843,0.00043128,70495.0,70494.0,0.09473727]
[1771152458240,0.07096223,70500.0,70498.0,0.02380925]
[1771152458241,4e-05,70500.0,70498.0,0.02380925]
[1771152458441,0.0001484,70506.0,70499.0,0.02380925]
[1771152458616,0.07091758,70505.0,70501.0,0.02380925]
[1771152459158,0.07091758,70505.0,70500.0,0.07092168]
[1771152459511,0.07106481,70506.0,70500.0,0.07092168]
[1771152459706,0.07106481,70506.0,70500.0,0.09473115]
[1771152459919,0.0001484,70506.0,70503.0,0.0709186]
[1771152460575,0.0001484,70506.0,70502.0,0.07091974]
[1771152461328,0.07106481,70506.0,70501.0,0.07091944]
[1771152461530,0.07091763,70505.0,70500.0,0.02380925]
[1771152462577,0.07091763,70505.0,70498.0,0.04469727]
[1771152462779,0.0004,70499.0,70498.0,0.06942807]
[1771152464641,0.0004,70499.0,70498.0,0.04469727]
[1771152464834,0.0004,70499.0,70496.0,0.07092571]
[1771152465696,0.0004,70499.0,70493.0,0.07092867]
[1771152466103,0.07132486,70499.0,70493.0,0.07092867]
[1771152466577,0.0004,70499.0,70494.0,0.07092794]
[1771152467342,0.0004,70499.0,70495.0,0.07092696]
[1771152467542,0.07132309,70499.0,70494.0,0.07092794]
[1771152470130,0.07132309,70499.0,70495.0,0.07092698]
[1771152470543,0.07132309,70499.0,70494.0,0.07092794]
[1771152471294,0.0004,70499.0,70495.0,0.07092674]
[1771152472381,0.0004,70499.0,70498.0,0.07092399]
[1771152473995,0.0004,70499.0,70497.0,0.07092483]
[1771152474222,0.0004,70499.0,70498.0,0.07092399]
[1771152474816,0.0004,70499.0,70496.0,0.07092515]
[1771152475194,0.0004,70499.0,70497.0,0.07092481]
[1771152475374,0.0004,70499.0,70498.0,0.07092399]
[1771152480236,0.0004,70499.0,70498.0,0.07233973]
[1771152480440,1e-08,70499.0,70498.0,0.07233973]
[1771152482691,1e-08,70499.0,70498.0,0.09506837]
[1771152482905,0.0001484,70506.0,70505.0,0.07091695]
[1771152483106,0.0001484,70506.0,70504.0,0.07091743]
[1771152484312,0.0001484,70506.0,70503.0,0.07091743]
[1771152484524,0.07091724,70505.0,70500.0,0.0709214]
[1771152484970,0.07091724,70505.0,70501.0,0.07092095]
[1771152485393,0.07091724,70505.0,70500.0,0.0709214]
[1771152485610,0.07091827,70504.0,70499.0,0.07092125]
[1771152485817,0.07091724,70505.0,70500.0,0.0709218]
[1771152486230,0.07131724,70505.0,70500.0,0.0709218]
[1771152486442,0.07131724,70505.0,70499.0,0.07092299]
[1771152486443,0.0004,70505.0,70499.0,0.07092299]
[1771152486638,0.0004,70505.0,70495.0,0.02272864]
[1771152486639,0.0004,70505.0,70503.0,0.07091866]
[1771152486840,0.0004,70505.0,70502.0,0.07091835]
[1771152487014,0.0004,70505.0,70501.0,0.07091932]
[1771152487228,0.0004,70505.0,70500.0,0.07092027]
[1771152487229,0.0004,70505.0,70503.0,0.07091876]
[1771152487426,0.0004,70505.0,70502.0,0.07091931]
[1771152487979,0.0004,70505.0,70503.0,0.07091884]
[1771152488193,0.07091454,70508.0,70504.0,0.07091753]
[1771152488194,1e-08,70508.0,70504.0,0.07091753]
[1771152488423,1e-08,70508.0,70505.0,0.02272864]
[1771152489241,1e-08,70508.0,70505.0,0.02313384]
[1771152490486,0.07091398,70508.0,70505.0,0.02313384]
[1771152490691,0.07091397,70508.0,70505.0,0.02313384]
[1771152490889,1e-08,70508.0,70505.0,0.02313384]
[1771152491094,1e-08,70508.0,70507.0,0.07091494]
[1771152491300,1e-08,70508.0,70507.0,0.07119174]
[1771152491904,1e-08,70508.0,70455.0,0.0002]
[1771152492118,0.1793611,70495.0,70455.0,0.0002]
[1771152492352,0.07053902,70452.0,70451.0,0.0002]
[1771152492560,0.07053902,70452.0,70448.0,0.0002]
[1771152492561,0.22899426,70449.0,70448.0,0.0002]
[1771152492769,0.095424,70449.0,70437.0,0.0073033]
[1771152492999,0.0004,70445.0,70438.0,0.29999999]
[1771152493211,0.0004,70445.0,70433.0,0.0047254]
[1771152493212,0.10002245,70448.0,70435.0,0.29999999]
[1771152493448,0.10002245,70448.0,70432.0,0.49942173]
[1771152493449,0.02320488,70447.0,70436.0,0.22896748]
[1771152493689,0.02320488,70447.0,70435.0,7.345e-05]
[1771152493910,0.02320488,70453.0,70447.0,0.07069025]
[1771152494110,0.07095736,70452.0,70445.0,0.07097734]
[1771152494288,0.07095736,70452.0,70443.0,0.07097928]
[1771152494430,0.07095736,70452.0,70442.0,0.0709802]
[1771152494634,0.07095736,70452.0,70439.0,0.22901748]
[1771152494840,0.02320488,70463.0,70440.0,0.0047254]
[1771152495051,0.07096122,70462.0,70450.0,0.07569673]
[1771152495663,0.07096122,70462.0,70452.0,0.07096987]
[1771152496006,0.07096155,70461.0,70451.0,0.0002]
[1771152496218,0.07096122,70462.0,70452.0,0.07096988]
[1771152496425,0.07096122,70462.0,70452.0,0.29993736]
[1771152496594,0.0941629,70465.0,70452.0,0.29993736]
[1771152496802,0.0941629,70465.0,70454.0,0.07096817]
[1771152497047,0.0941629,70465.0,70452.0,0.22896748]
[1771152497264,0.07095713,70466.0,70455.0,0.25100908]
[1771152497447,0.000236,70471.0,70455.0,0.18476732]
[1771152497720,0.000236,70471.0,70451.0,0.28408226]
[1771152497721,0.07118804,70471.0,70458.0,0.07096389]
[1771152497941,0.000236,70471.0,70457.0,0.0047254]
[1771152498141,0.000236,70471.0,70460.0,0.18476732]
[1771152498693,0.000236,70471.0,70465.0,0.07095644]
[1771152498890,0.000236,70471.0,70465.0,0.07102989]
[1771152499100,0.000236,70471.0,70465.0,0.22904093]
[1771152499313,0.28377607,70479.0,70465.0,0.22904093]
[1771152499314,0.0002032,70482.0,70466.0,0.18494573]
[1771152499520,0.07114351,70482.0,70472.0,0.07094945]
[1771152499723,0.07114351,70482.0,70473.0,0.07094896]
[1771152500155,0.07094144,70481.0,70471.0,0.07094945]
[1771152500357,0.07094144,70481.0,70472.0,0.29991756]
[1771152500721,0.07094144,70481.0,70473.0,0.0709489]
[1771152500936,0.07094144,70481.0,70472.0,0.22896748]
[1771152501162,0.07094144,70481.0,70473.0,0.070949]
[1771152501373,0.0002032,70482.0,70472.0,0.22896748]
[1771152501559,0.07094274,70480.0,70472.0,0.22896748]
[1771152502498,0.07094313,70479.0,70473.0,0.001]
[1771152502891,0.07094313,70479.0,70472.0,0.22896748]
[1771152503300,0.07094313,70479.0,70472.0,0.22892748]
[1771152503494,0.07094313,70479.0,70473.0,0.0002]
[1771152503728,0.07098255,70480.0,70473.0,0.0002]
[1771152504079,4e-05,70480.0,70473.0,0.07114864]
[1771152504290,4e-05,70480.0,70474.0,0.07094784]
[1771152504705,4e-05,70480.0,70475.0,0.07094647]
[1771152504906,0.0002032,70482.0,70473.0,0.0002]
[1771152505105,0.0002032,70482.0,70475.0,0.07094626]
[1771152505469,0.07114372,70482.0,70475.0,0.07094626]
[1771152507243,0.11337676,70514.0,70485.0,0.07093707]
[1771152507244,0.07093055,70492.0,70485.0,0.07093707]
[1771152507505,0.07093316,70489.0,70482.0,0.07093816]
[1771152507709,0.52637881,70497.0,70480.0,0.07094185]
[1771152507710,0.02320488,70491.0,70480.0,0.07094185]
[1771152507913,0.07093561,70487.0,70480.0,0.07094185]
[1771152508070,0.1408589,70486.0,70480.0,0.07094185]
[1771152508269,0.1408589,70485.0,70480.0,0.07094185]
[1771152508478,0.07093561,70487.0,70480.0,0.07094185]
[1771152508479,0.1408589,70484.0,70480.0,0.07094185]
[1771152508690,0.02320488,70490.0,70483.0,0.07093838]
[1771152509029,0.14087193,70489.0,70475.0,0.4136948]
[1771152509190,0.21180646,70488.0,70475.0,0.4136948]
[1771152509398,0.14087193,70487.0,70481.0,0.07094046]
[1771152509576,0.14087193,70486.0,70481.0,0.0709402]
[1771152509785,0.01296132,70494.0,70481.0,0.22892748]
[1771152509786,0.02320488,70493.0,70481.0,0.22892748]
[1771152509995,4e-05,70500.0,70483.0,0.0047254]
[1771152509996,0.02324488,70500.0,70483.0,0.0047254]
[1771152510230,0.02324488,70500.0,70481.0,0.22892748]
[1771152510231,4e-05,70500.0,70498.0,0.07092355]
[1771152510399,4e-05,70500.0,70499.0,0.07092299]
[1771152510604,4e-05,70500.0,70497.0,0.07092461]
[1771152510807,4e-05,70500.0,70496.0,0.0709253]
[1771152510808,4e-05,70500.0,70499.0,0.07092299]
[1771152511215,4e-05,70500.0,70496.0,0.07092556]
[1771152511413,0.00047155,70500.0,70495.0,0.07092661]
[1771152511803,0.0004,70497.0,70496.0,0.070926]
[1771152517114,0.0004,70497.0,70496.0,0.29985348]
[1771152517328,1e-08,70500.0,70499.0,0.07092299]
[1771152517543,0.0004,70504.0,70502.0,0.07091948]
[1771152517776,0.0004,70504.0,70501.0,0.07092094]
[1771152518174,0.0004,70504.0,70502.0,0.07091948]
[1771152518416,0.0004,70504.0,70503.0,0.07091896]
[1771152521420,5.501e-05,70508.0,70503.0,0.29984643]
[1771152521633,5.506e-05,70508.0,70506.0,0.07091582]
[1771152522845,5.506e-05,70508.0,70505.0,0.07091692]
[1771152523047,5.506e-05,70508.0,70505.0,0.29984439]
[1771152523251,5.506e-05,70508.0,70507.0,0.07091494]
[1771152524291,5.506e-05,70508.0,70507.0,0.05445785]
[1771152525701,0.00045506,70508.0,70507.0,0.05445785]
[1771152526714,0.07136947,70508.0,70503.0,0.07091832]
[1771152526919,0.09418838,70508.0,70503.0,0.07091832]
[1771152527142,0.09418838,70508.0,70504.0,0.22892747]
[1771152528734,0.00045506,70508.0,70507.0,0.07091494]
[1771152529174,1e-08,70508.0,70507.0,0.29984241]
[1771152529390,0.000255,70516.0,70507.0,0.22892747]
[1771152529597,0.000255,70516.0,70514.0,0.07090745]
[1771152529819,0.000255,70516.0,70514.0,0.06254438]
[1771152530070,0.02301891,70516.0,70515.0,0.07090689]
[1771152530305,0.02301891,70516.0,70514.0,0.06254438]
[1771152530720,0.02301891,70516.0,70515.0,0.07090689]
[1771152530932,0.02301891,70516.0,70514.0,0.06254438]
[1771152531899,0.02301891,70516.0,70515.0,0.07090689]
[1771152532096,0.0004,70520.0,70500.0,4e-05]
[1771152532303,0.16408239,70519.0,70515.0,0.07090646]
[1771152532661,0.07130228,70520.0,70515.0,1e-08]
[1771152532662,0.02281891,70517.0,70515.0,1e-08]
[1771152532880,0.02281891,70517.0,70515.0,0.0577384]
[1771152533458,0.0004,70516.0,70515.0,0.0577384]
[1771152535062,0.0004,70516.0,70515.0,0.07090689]
[1771152539265,0.0004,70516.0,70506.0,0.1800437]
[1771152539266,0.0004,70520.0,70517.0,0.07090427]
[1771152539467,0.00052936,70520.0,70517.0,0.07090427]
[1771152539881,0.00052936,70520.0,70518.0,0.07090375]
[1771152540312,0.00052936,70520.0,70517.0,0.07090427]
[1771152540519,0.00052936,70520.0,70518.0,0.22852747]
[1771152540734,0.0709065,70516.0,70497.0,0.76538549]
[1771152540954,0.02281891,70515.0,70511.0,0.07091055]
[1771152541173,0.07090703,70515.0,70512.0,0.22852747]
[1771152541377,0.02281891,70514.0,70510.0,0.07091137]
[1771152541783,0.02281891,70514.0,70511.0,0.07091091]
[1771152542017,0.02281891,70514.0,70513.0,0.07090891]
[1771152542225,0.02281891,70519.0,70516.0,0.0709049]
[1771152542637,0.02281891,70519.0,70516.0,0.07090584]
[1771152542841,0.02281891,70519.0,70515.0,0.07090498]
[1771152543274,0.00052936,70520.0,70516.0,0.29943275]
[1771152543471,0.00052936,70520.0,70517.0,0.0709045]
[1771152543796,0.00052936,70520.0,70517.0,0.29943197]
[1771152544216,0.00052936,70520.0,70517.0,0.22852747]
[1771152545456,0.00052936,70520.0,70517.0,0.14405543]
[1771152546025,0.07143154,70520.0,70517.0,0.14405543]
[1771152546223,0.09425045,70520.0,70517.0,0.14405543]
[1771152546448,0.02334827,70520.0,70517.0,0.14405543]
[1771152546656,0.02334827,70520.0,70516.0,0.07090587]
[1771152546863,0.02334827,70520.0,70518.0,0.14405543]
[1771152547179,0.09425035,70520.0,70518.0,0.14405543]
[1771152547379,0.09425035,70520.0,70515.0,0.07090519]
[1771152547597,0.09425035,70520.0,70518.0,0.14405543]
[1771152547809,0.28399621,70523.0,70518.0,0.14405543]
[1771152547810,1e-08,70534.0,70519.0,0.1800437]
[1771152547993,1e-08,70534.0,70515.0,0.0002]
[1771152547994,0.0004,70528.0,70526.0,0.07089505]
[1771152548167,0.02281891,70527.0,70526.0,0.07089505]
[1771152549340,0.02281891,70527.0,70509.0,0.0047254]
[1771152549341,0.02281891,70526.0,70509.0,0.0047254]
[1771152549542,0.02281891,70526.0,70522.0,0.07089918]
[1771152549843,0.02281891,70524.0,70520.0,0.07090134]
[1771152552088,0.02281891,70524.0,70519.0,0.07090134]
[1771152552315,0.02281891,70524.0,70520.0,0.07090179]
[1771152552531,0.02281891,70524.0,70521.0,0.07090061]
[1771152553416,0.02281891,70524.0,70522.0,0.07089928]
[1771152553640,0.02333214,70527.0,70525.0,0.07089585]
[1771152553851,0.07089522,70527.0,70522.0,0.07089969]
[1771152554073,0.02333214,70526.0,70522.0,0.07089969]
[1771152554513,0.02333214,70525.0,70521.0,0.07090056]
[1771152554933,0.02333214,70523.0,70521.0,0.07090056]
[1771152556300,0.0004,70528.0,70515.0,0.0002]
[1771152556518,0.0004,70528.0,70525.0,0.07089613]
[1771152556727,0.0004,70528.0,70526.0,0.0708952]
[1771152557800,0.02373214,70528.0,70526.0,0.0708952]
[1771152557976,0.02373214,70528.0,70524.0,0.07089618]
[1771152558296,0.02373214,70528.0,70525.0,0.07089684]
[1771152558622,0.02373214,70528.0,70526.0,0.07089578]
[1771152559254,0.02373214,70528.0,70525.0,0.07089684]
[1771152561465,0.02373214,70528.0,70527.0,0.07089483]
[1771152561466,0.0004,70528.0,70527.0,0.07089483]
[1771152562103,0.0004,70532.0,70530.0,0.07089132]
[1771152562458,0.0004,70532.0,70529.0,0.07089119]
[1771152563489,0.0004,70532.0,70527.0,0.07089474]
[1771152563858,0.07089092,70531.0,70526.0,0.0708941]
[1771152564234,0.07089356,70529.0,70524.0,0.07089606]
[1771152564943,0.0942257,70529.0,70524.0,0.07089606]
[1771152566422,0.02333214,70529.0,70525.0,0.0708967]
[1771152566684,0.09422503,70529.0,70525.0,0.0708967]
[1771152567877,0.09422503,70529.0,70524.0,0.04268075]
[1771152568452,0.09422503,70529.0,70525.0,0.0708967]
[1771152568649,0.07089289,70529.0,70524.0,0.04268075]
[1771152571443,0.07089289,70529.0,70525.0,0.07089669]
[1771152573643,0.07089289,70529.0,70524.0,0.04268075]
[1771152574674,0.07089385,70528.0,70524.0,0.04268075]
[1771152575934,0.07089289,70529.0,70524.0,0.04268075]
[1771152576354,0.07089338,70530.0,70520.0,4e-05]
[1771152576355,0.07089732,70525.0,70520.0,4e-05]
[1771152576558,0.02333214,70524.0,70520.0,4e-05]
[1771152576758,0.02333214,70524.0,70520.0,0.07094177]
[1771152576979,0.02333214,70524.0,70519.0,0.07090228]
[1771152577181,0.02333214,70523.0,70519.0,0.07090259]
[1771152577385,0.02333214,70523.0,70518.0,0.07090227]
[1771152577563,0.02333214,70523.0,70519.0,0.07090225]
[1771152577765,5.5e-05,70527.0,70522.0,0.07089986]
[1771152578180,0.07094991,70527.0,70522.0,0.07089986]
[1771152579777,0.02333214,70526.0,70522.0,0.07089986]
[1771152582348,0.07089717,70525.0,70520.0,0.07090154]
[1771152582482,0.09538233,70525.0,70520.0,0.07090154]
[1771152583148,0.02448516,70525.0,70521.0,0.07090071]
[1771152583353,0.07089778,70526.0,70521.0,0.07090071]
[1771152583733,5.5e-05,70527.0,70525.0,0.07089636]
[1771152583942,0.02430612,70534.0,70518.0,0.20544873]
[1771152583943,0.02379605,70546.0,70522.0,0.18084251]
[1771152584147,0.07087882,70543.0,70537.0,0.07088478]
[1771152584581,0.22047388,70548.0,70541.0,0.07088046]
[1771152584920,0.22047388,70548.0,70533.0,0.60367312]
[1771152584921,0.07087792,70544.0,70539.0,0.07088231]
[1771152585154,0.1496,70548.0,70539.0,0.09548853]
[1771152585155,0.07087733,70545.0,70539.0,0.09548853]
[1771152585353,0.12984,70549.0,70543.0,0.07087868]
[1771152585484,0.07087699,70545.0,70540.0,0.0708808]
[1771152586003,0.07087705,70545.0,70538.0,0.07088292]
[1771152586216,0.07087705,70545.0,70539.0,0.07088262]
[1771152586414,0.07087726,70546.0,70533.0,0.02460622]
[1771152586415,0.07087726,70546.0,70540.0,0.07088095]
[1771152586623,0.16739851,70548.0,70530.0,0.60367312]
[1771152586817,0.02379605,70546.0,70531.0,0.07089081]
[1771152587049,0.07088418,70538.0,70533.0,0.07088829]
[1771152587249,0.07088418,70538.0,70531.0,0.07089081]